fUST/lending_fUST_20250625
["ID","MTS","AMOUNT","RATE_DAILY","PERIOD"]
[367505854,1750833047427,-1495.87,0.00020637,2]
[367505855,1750833047439,-902.9,0.00020637,2]
[367505856,1750833047449,-460.0,0.00020638,2]
[367505857,1750833047461,-492.62,0.00020638,2]
[367505858,1750833047471,-460.0,0.00020638,2]
[367505859,1750833047483,-460.0,0.00020638,2]
[367505860,1750833047494,-460.0,0.00020638,2]
[367505861,1750833047505,-460.0,0.00020638,2]
[367505862,1750833047515,-949.37,0.00020639,2]
[367505863,1750833047527,-217.69423885,0.00020639,2]
[367505864,1750833047537,-460.0,0.00020639,2]
[367505865,1750833047548,-767.24,0.00020639,2]
[367505866,1750833047559,-460.0,0.00020639,2]
[367505867,1750833047570,-460.0,0.00020639,2]
[367505868,1750833047581,-1154.81,0.00020639,2]
[367505869,1750833047591,-184.38,0.00020639,2]
[367505870,1750833047603,-723.48,0.00020639,2]
[367505871,1750833047617,-671.38,0.00020639,2]
[367505872,1750833047629,-460.0,0.00020639,2]
[367505873,1750833047639,-529.6,0.00020639,2]
[367505874,1750833047652,-151.0,0.00020658,2]
[367505875,1750833047663,-159.155909,0.00020658,2]
[367505876,1750833047674,-159.155909,0.00020658,2]
[367505877,1750833047688,-3367.0,0.0002068,2]
[367505878,1750833047700,-151.0,0.000207,4]
[367505879,1750833047712,-965.0,0.00020704,2]
[367505880,1750833047723,-406.0,0.00020704,2]
[367505881,1750833047735,-654.0,0.00020704,2]
[367505882,1750833047747,-168.77244961,0.00020728,2]
[367505883,1750833047758,-1102.72,0.0002073,2]
[367505884,1750833047769,-2750.65653643,0.00020797,4]
[367505885,1750833047780,-3718.56608951,0.000208,3]
[367505886,1750833047791,-2995.0,0.00020804,2]
[367505887,1750833047802,-500.0,0.00020821,15]
[367505888,1750833047813,-260966.48164734,0.00020828,2]
[367505889,1750833047979,-8296.97215699,0.00020828,2]
[367505890,1750833047993,-1475.90573475,0.00020828,2]
[367505891,1750833048007,-4078.0,0.00020828,2]
[367505892,1750833048020,-2371.42907481,0.00020828,2]
[367505893,1750833048300,-151.52823145,0.00019315,2]
[367505894,1750833048310,-155.11276546,0.00019339,2]
[367505895,1750833048319,-910.95879481,0.00020704,2]
[367505896,1750833048335,-318.18905023,0.00020704,2]
[367505897,1750833048436,-749.58507329,0.0001817,2]
[367505898,1750833048689,-460.0,0.00017897,2]
[367505899,1750833048698,-460.0,0.00017898,2]
[367505900,1750833048708,-542.87492671,0.0001817,2]
[367505901,1750833048717,-537.12507329,0.00018171,2]
[367505902,1750833048729,-9.51492671,0.00018171,2]
[367505903,1750833048738,-460.0,0.00018172,2]
[367505904,1750833048747,-1292.46,0.00018444,2]
[367505905,1750833048757,-336.66009361,0.00018647,2]
[367505906,1750833048766,-1292.46,0.00018718,2]
[367505907,1750833048776,-1292.46,0.00018992,2]
[367505908,1750833048785,-1292.46,0.00019266,2]
[367505909,1750833048795,-151.0,0.00019329,2]
[367505910,1750833048804,-1292.46,0.0001954,2]
[367505911,1750833048814,-1292.46,0.00019814,2]
[367505912,1750833048823,-151.0,0.00019815,2]
[367505913,1750833048832,-366.0085437,0.00020055,2]
[367505914,1750833048841,-1292.46,0.00020088,2]
[367505915,1750833048850,-1292.46,0.00020362,2]
[367505916,1750833048860,-151.0,0.00020364,2]
[367505917,1750833048869,-1292.46,0.00020636,2]
[367505918,1750833048879,-931.85215496,0.00020704,2]
[367505919,1750833048889,-2153.59773811,0.00020728,2]
[367505920,1750833048898,-24381.22654291,0.00020828,2]
[367505921,1750833048910,-3139.90919649,0.00020828,2]
[367505922,1750833048921,-30440.50120024,0.00020828,2]
[367505923,1750833250858,160.779413,0.00013699,2]
[367505924,1750833474426,756.02,0.00024658,120]
[367505926,1750833531310,1104.80824287,0.000222,69]
[367505930,1750833536313,1104.80824283,0.000222,69]
[367505931,1750833541307,1104.80824283,0.000222,69]
[367505933,1750833546309,1104.80824283,0.000222,69]
[367505934,1750833939629,215.51834562,0.00025579,60]
[367505935,1750833991671,220.96164859,0.000222,69]
[367505936,1750833996721,220.96164856,0.000222,69]
[367505937,1750834001695,220.96164856,0.000222,69]
[367505938,1750834006646,220.96164856,0.000222,69]
[367505941,1750834232158,-285.62279846,0.00016793,2]
[367505942,1750834232168,-1200.0,0.00016799,2]
[367505943,1750834232178,-17311.0,0.000168,2]
[367505944,1750834232187,-300.0,0.00016892,2]
[367505945,1750834232196,-160.83707098,0.00016893,2]
[367505946,1750834232205,-526.31909194,0.00016893,2]
[367505947,1750834232214,-460.0,0.00016893,2]
[367505948,1750834232224,-460.0,0.00016893,2]
[367505949,1750834232233,-460.0,0.00016893,2]
[367505950,1750834232243,-460.0,0.00016893,2]
[367505953,1750834232252,-559.79089011,0.00016893,2]
[367505954,1750834232261,-460.0,0.00016893,2]
[367505955,1750834232271,-460.0,0.00016893,2]
[367505956,1750834232281,-460.0,0.00016893,2]
[367505957,1750834232290,-460.0,0.00016893,2]
[367505958,1750834232300,-460.0,0.00016893,2]
[367505959,1750834232309,-460.0,0.00016893,2]
[367505960,1750834232319,-460.0,0.00016893,2]
[367505961,1750834232328,-500.39886976,0.00016893,2]
[367505962,1750834232338,-848.55,0.00016893,2]
[367505963,1750834232348,-1115.39,0.00016893,2]
[367505964,1750834232358,-1053.33,0.00016893,2]
[367505965,1750834232367,-1132.88,0.00016893,2]
[367505966,1750834232377,-460.0,0.00016893,2]
[367505967,1750834232386,-159.96,0.00016893,2]
[367505968,1750834232396,-914.59,0.00016893,2]
[367505969,1750834232405,-813.22,0.00016893,2]
[367505970,1750834232414,-1246.56,0.00016893,2]
[367505971,1750834232424,-487.29,0.00016893,2]
[367505972,1750834232433,-460.0,0.00016893,2]
[367505973,1750834232443,-700.09,0.00016893,2]
[367505974,1750834232452,-22707.9262,0.00016894,2]
[367505975,1750834232462,-460.0,0.00017167,2]
[367505976,1750834232472,-848.55,0.00017167,2]
[367505977,1750834232482,-1115.39,0.00017167,2]
[367505978,1750834232491,-1053.33,0.00017167,2]
[367505979,1750834232500,-1132.88,0.00017167,2]
[367505980,1750834232510,-460.0,0.00017167,2]
[367505981,1750834232520,-914.59,0.00017167,2]
[367505982,1750834232529,-813.22,0.00017167,2]
[367505983,1750834232539,-1246.56,0.00017167,2]
[367505984,1750834232548,-460.0,0.00017167,2]
[367505985,1750834232558,-700.09,0.00017167,2]
[367505986,1750834232568,-848.55,0.00017441,2]
[367505987,1750834232579,-1115.39,0.00017441,2]
[367505988,1750834232588,-1053.33,0.00017441,2]
[367505989,1750834232598,-1132.88,0.00017441,2]
[367505990,1750834232607,-460.0,0.00017441,2]
[367505991,1750834232617,-914.59,0.00017441,2]
[367505992,1750834232626,-813.22,0.00017441,2]
[367505993,1750834232635,-1246.56,0.00017441,2]
[367505994,1750834232645,-460.0,0.00017441,2]
[367505995,1750834232654,-700.09,0.00017441,2]
[367505996,1750834232663,-848.55,0.00017715,2]
[367505997,1750834232673,-1115.39,0.00017715,2]
[367505998,1750834232683,-1053.33,0.00017715,2]
[367505999,1750834232693,-1132.88,0.00017715,2]
[367506000,1750834232703,-460.0,0.00017715,2]
[367506001,1750834232712,-914.59,0.00017715,2]
[367506002,1750834232722,-813.22,0.00017715,2]
[367506003,1750834232731,-1246.56,0.00017715,2]
[367506004,1750834232740,-460.0,0.00017715,2]
[367506005,1750834232749,-700.09,0.00017715,2]
[367506006,1750834232759,-210.10109945,0.00017735,2]
[367506007,1750834232769,-285.62279845,0.00017787,2]
[367506008,1750834232779,-335.87,0.00017883,3]
[367506009,1750834232788,-167.94,0.00017883,3]
[367506010,1750834232943,-503.82,0.00017883,3]
[367506011,1750834232953,-518.24133794,0.00017891,2]
[367506012,1750834232963,-518.24133794,0.00017891,2]
[367506013,1750834232972,-460.0,0.00017892,2]
[367506014,1750834232982,-460.0,0.00017892,2]
[367506015,1750834232992,-460.0,0.00017892,2]
[367506016,1750834233002,-460.0,0.00017892,2]
[367506017,1750834233011,-192.96,0.00017892,2]
[367506018,1750834233021,-418.16,0.00017892,2]
[367506019,1750834233031,-460.0,0.00017892,2]
[367506020,1750834233041,-460.0,0.00017892,2]
[367506021,1750834233050,-460.0,0.00017892,2]
[367506022,1750834233060,-460.0,0.00017892,2]
[367506023,1750834233069,-460.0,0.00017892,2]
[367506024,1750834233079,-460.0,0.00017892,2]
[367506025,1750834233088,-3093.3119572,0.00017892,2]
[367506043,1750834238060,-500.0,0.00016892,2]
[367506045,1750834238070,-500.0,0.00016892,2]
[367506047,1750834238080,-500.0,0.00016892,2]
[367506049,1750834238089,-485.36585908,0.00016892,2]
[367506052,1750834238101,-14.63414092,0.00016892,2]
[367506054,1750834238111,-500.0,0.00016892,2]
[367506056,1750834238120,-500.0,0.00016892,2]
[367506058,1750834238129,-500.0,0.00016892,2]
[367506060,1750834238138,-500.0,0.00016892,2]
[367506063,1750834238157,-500.0,0.00016892,2]
[367506065,1750834238167,-500.0,0.00016892,2]
[367506067,1750834238177,-88.3892028,0.00016892,2]
[367506069,1750834238190,-411.6107972,0.00016892,2]
[367506071,1750834238199,-500.0,0.00016892,2]
[367506073,1750834238209,-500.0,0.00016892,2]
[367506075,1750834238218,-500.0,0.00016892,2]
[367506077,1750834238228,-500.0,0.00016892,2]
[367506081,1750834238238,-242.72100935,0.00016892,2]
[367506083,1750834238248,-518.24133794,0.00017891,2]
[367506085,1750834238257,-518.24133794,0.00017891,2]
[367506087,1750834238267,-518.24133794,0.00017891,2]
[367506089,1750834238276,-518.24133794,0.00017891,2]
[367506091,1750834238285,-518.24133794,0.00017891,2]
[367506093,1750834238295,-518.24133794,0.00017891,2]
[367506095,1750834238304,-518.24133794,0.00017891,2]
[367506097,1750834238313,-518.24133794,0.00017891,2]
[367506099,1750834238322,-518.24133794,0.00017891,2]
[367506101,1750834238331,-518.24133794,0.00017891,2]
[367506103,1750834238341,-518.24133794,0.00017891,2]
[367506105,1750834238350,-518.24133794,0.00017891,2]
[367506107,1750834238359,-518.24133794,0.00017891,2]
[367506109,1750834238369,-518.24133794,0.00017891,2]
[367506111,1750834238378,-518.24133794,0.00017891,2]
[367506113,1750834238388,-518.24133794,0.00017891,2]
[367506115,1750834238398,-518.24133794,0.00017891,2]
[367506117,1750834238407,-8475.28027273,0.00017892,2]
[367506120,1750834238424,-16764.44777007,0.00017892,2]
[367506122,1750834238434,-460.0,0.00017892,2]
[367506124,1750834238444,-1729.3,0.00017892,2]
[367506126,1750834238454,-460.0,0.00017892,2]
[367506128,1750834238463,-460.0,0.00017892,2]
[367506130,1750834238473,-460.0,0.00017892,2]
[367506132,1750834238485,-485.15576816,0.00017892,2]
[367506134,1750834238499,-752.41,0.00017892,2]
[367506136,1750834238509,-460.0,0.00017892,2]
[367506138,1750834238518,-460.0,0.00017892,2]
[367506140,1750834238528,-460.0,0.00017893,2]
[367506142,1750834238538,-460.0,0.00017893,2]
[367506144,1750834238547,-561.68,0.00017893,2]
[367506146,1750834238557,-359.18502408,0.00017893,2]
[367506148,1750834238566,-460.0,0.00017893,2]
[367506150,1750834238578,-460.0,0.00017893,2]
[367506152,1750834238587,-460.0,0.00017893,2]
[367506154,1750834238597,-460.0,0.00017893,2]
[367506156,1750834238607,-460.0,0.00017893,2]
[367506158,1750834238616,-460.0,0.00017893,2]
[367506160,1750834238626,-460.0,0.00017893,2]
[367506162,1750834238635,-460.0,0.00017893,2]
[367506164,1750834238644,-460.0,0.00017893,2]
[367506166,1750834238654,-460.0,0.00017893,2]
[367506168,1750834238663,-460.0,0.00017893,2]
[367506170,1750834238673,-460.0,0.00017893,2]
[367506173,1750834238682,-365.813048,0.00017893,2]
[367506175,1750834238692,-460.0,0.00017893,2]
[367506177,1750834238702,-460.0,0.00017893,2]
[367506179,1750834238711,-460.0,0.00017893,2]
[367506181,1750834238721,-460.0,0.00017893,2]
[367506183,1750834238730,-460.0,0.00017893,2]
[367506185,1750834238739,-460.0,0.00017893,2]
[367506187,1750834238749,-460.0,0.00017893,2]
[367506189,1750834238758,-460.0,0.00017893,2]
[367506191,1750834238771,-460.0,0.00017893,2]
[367506193,1750834238780,-460.0,0.00017893,2]
[367506195,1750834238791,-460.0,0.00017893,2]
[367506197,1750834238801,-460.0,0.00017893,2]
[367506199,1750834238810,-460.0,0.00017893,2]
[367506201,1750834238819,-460.0,0.00017893,2]
[367506203,1750834238829,-453.12734487,0.00017893,2]
[367506205,1750834238839,-460.0,0.00017893,2]
[367506207,1750834238852,-762.64,0.00017893,2]
[367506209,1750834238870,-322.07900147,0.00017893,2]
[367506211,1750834238880,-460.0,0.00017893,2]
[367506213,1750834238890,-460.0,0.00017893,2]
[367506215,1750834238899,-460.0,0.00017893,2]
[367506218,1750834238909,-460.0,0.00017893,2]
[367506220,1750834238918,-460.0,0.00017893,2]
[367506221,1750834238928,-264.23014974,0.00017893,2]
[367506224,1750834238938,-460.0,0.00017893,2]
[367506226,1750834238947,-460.0,0.00017893,2]
[367506228,1750834238957,-460.0,0.00017893,2]
[367506230,1750834238966,-613.34,0.00017893,2]
[367506231,1750834238976,-460.0,0.00017893,2]
[367506232,1750834238985,-466.14345709,0.00017893,2]
[367506233,1750834238994,-460.0,0.00017893,2]
[367506234,1750834239004,-416.04717881,0.00017893,2]
[367506235,1750834239014,-460.0,0.00017893,2]
[367506236,1750834239023,-978.23,0.00017893,2]
[367506237,1750834239033,-460.0,0.00017893,2]
[367506238,1750834239042,-460.0,0.00017893,2]
[367506239,1750834239052,-460.0,0.00017893,2]
[367506240,1750834239062,-460.0,0.00017893,2]
[367506241,1750834239071,-612.85,0.00017893,2]
[367506242,1750834239080,-460.0,0.00017893,2]
[367506243,1750834239089,-564.47,0.00017893,2]
[367506244,1750834239098,-460.0,0.00017893,2]
[367506245,1750834239108,-460.0,0.00017893,2]
[367506246,1750834239117,-460.0,0.00017893,2]
[367506247,1750834239127,-460.0,0.00017893,2]
[367506248,1750834239136,-571.55139027,0.00017893,2]
[367506249,1750834239146,-460.0,0.00017893,2]
[367506250,1750834239155,-460.0,0.00017893,2]
[367506251,1750834239165,-460.0,0.00017893,2]
[367506252,1750834239175,-439.92489201,0.00017893,2]
[367506253,1750834239185,-460.0,0.00017893,2]
[367506254,1750834239194,-460.0,0.00017893,2]
[367506255,1750834239204,-460.0,0.00017894,2]
[367506256,1750834239214,-460.0,0.00017894,2]
[367506257,1750834239225,-460.0,0.00017894,2]
[367506258,1750834239234,-460.0,0.00017894,2]
[367506259,1750834239250,-460.0,0.00017894,2]
[367506260,1750834239259,-460.0,0.00017894,2]
[367506261,1750834239269,-460.0,0.00017894,2]
[367506262,1750834239279,-460.0,0.00017894,2]
[367506263,1750834239290,-460.0,0.00017894,2]
[367506264,1750834239300,-460.0,0.00017894,2]
[367506265,1750834239310,-460.0,0.00017894,2]
[367506266,1750834239320,-460.0,0.00017894,2]
[367506267,1750834239331,-460.0,0.00017894,2]
[367506268,1750834239340,-440.06076546,0.00017894,2]
[367506269,1750834239350,-460.0,0.00017894,2]
[367506270,1750834239360,-460.54124377,0.00017895,2]
[367506271,1750834239369,-460.53287782,0.00017895,2]
[367506272,1750834239379,-432.11160188,0.00017895,2]
[367506273,1750834239388,-460.0,0.00017895,2]
[367506274,1750834239398,-460.0,0.00017895,2]
[367506275,1750834239407,-460.0,0.00017895,2]
[367506276,1750834239417,-432.05742284,0.00017895,2]
[367506277,1750834239426,-460.0,0.00017895,2]
[367506278,1750834239436,-460.0,0.00017895,2]
[367506279,1750834239446,-460.0,0.00017895,2]
[367506280,1750834239455,-460.0,0.00017895,2]
[367506281,1750834239465,-460.0,0.00017895,2]
[367506282,1750834239475,-472.29,0.00017895,2]
[367506283,1750834239484,-460.0,0.00017895,2]
[367506284,1750834239493,-461.3545427,0.00017896,2]
[367506285,1750834239503,-423.37,0.00017896,2]
[367506286,1750834239513,-345.97637624,0.00017896,2]
[367506287,1750834239522,-460.0,0.00017896,2]
[367506288,1750834239531,-460.0,0.00017896,2]
[367506289,1750834239541,-460.5645774,0.00017896,2]
[367506290,1750834239550,-561.83,0.00017896,2]
[367506291,1750834239560,-460.0,0.00017896,2]
[367506292,1750834239571,-460.0,0.00017896,2]
[367506293,1750834239583,-536.1470737,0.00017896,2]
[367506294,1750834239593,-460.0,0.00017896,2]
[367506295,1750834239602,-460.0,0.00017897,2]
[367506296,1750834239611,-460.0,0.00017897,2]
[367506297,1750834239622,-460.32237208,0.00017897,2]
[367506298,1750834239631,-460.0,0.00017897,2]
[367506299,1750834239641,-460.0,0.00017897,2]
[367506300,1750834239651,-458.20713876,0.00017897,2]
[367506301,1750834239661,-460.0,0.00017899,2]
[367506302,1750834239670,-327.66373908,0.00017899,2]
[367506303,1750834239679,-357.76452755,0.00017899,2]
[367506304,1750834239688,-460.0,0.00017899,2]
[367506305,1750834239697,-460.0,0.00017899,2]
[367506306,1750834239707,-457.69444043,0.00017899,2]
[367506307,1750834239716,-458.03875855,0.00017899,2]
[367506308,1750834239726,-460.1753623,0.00017899,2]
[367506309,1750834239735,-556.26204884,0.00017899,2]
[367506310,1750834239745,-460.0,0.00017899,2]
[367506311,1750834239754,-460.0,0.00017899,2]
[367506312,1750834239763,-435.61114273,0.00017899,2]
[367506313,1750834239773,-460.0,0.00017899,2]
[367506314,1750834239783,-460.83205486,0.00017899,2]
[367506315,1750834239792,-460.0,0.00017899,2]
[367506316,1750834239801,-460.0,0.00017899,2]
[367506317,1750834239811,-460.0,0.00017899,2]
[367506318,1750834239820,-460.0,0.00017899,2]
[367506319,1750834239829,-460.0,0.00017899,2]
[367506320,1750834239838,-460.0,0.00017899,2]
[367506321,1750834239847,-460.0,0.00017899,2]
[367506322,1750834239857,-460.0,0.00017899,2]
[367506323,1750834239867,-460.0,0.00017899,2]
[367506324,1750834239876,-848.55,0.00017989,2]
[367506325,1750834239885,-1115.39,0.00017989,2]
[367506326,1750834239895,-1053.33,0.00017989,2]
[367506327,1750834239904,-1132.88,0.00017989,2]
[367506328,1750834239913,-460.0,0.00017989,2]
[367506329,1750834239923,-914.59,0.00017989,2]
[367506330,1750834239932,-813.22,0.00017989,2]
[367506331,1750834239942,-1246.56,0.00017989,2]
[367506332,1750834239951,-460.0,0.00017989,2]
[367506333,1750834239961,-700.09,0.00017989,2]
[367506334,1750834239970,-255.0,0.0001801,2]
[367506335,1750834239980,-235.23589871,0.00018015,2]
[367506336,1750834239990,-861.43909526,0.00018067,2]
[367506337,1750834240000,-2274.63964413,0.000181,2]
[367506338,1750834240009,-2274.63964404,0.00018141,2]
[367506339,1750834240019,-460.0,0.00018166,2]
[367506340,1750834240028,-460.0,0.00018166,2]
[367506341,1750834240037,-460.0,0.00018166,2]
[367506342,1750834240050,-460.0,0.00018166,2]
[367506343,1750834240059,-460.0,0.00018166,2]
[367506345,1750834240068,-28333.04,0.00018166,2]
[367506347,1750834240077,-460.0,0.00018166,2]
[367506349,1750834240086,-1729.3,0.00018166,2]
[367506351,1750834240096,-460.0,0.00018166,2]
[367506353,1750834240105,-460.0,0.00018166,2]
[367506355,1750834240114,-752.41,0.00018166,2]
[367506357,1750834240129,-568.26,0.00018167,2]
[367506358,1750834240142,-460.0,0.00018167,2]
[367506359,1750834240151,-460.0,0.00018167,2]
[367506360,1750834240160,-438.62,0.00018167,2]
[367506361,1750834240169,-460.0,0.00018167,2]
[367506363,1750834240178,-553.04,0.00018167,2]
[367506365,1750834240187,-460.0,0.00018167,2]
[367506367,1750834240196,-460.0,0.00018167,2]
[367506368,1750834240206,-527.52,0.00018167,2]
[367506369,1750834240216,-460.0,0.00018167,2]
[367506370,1750834240225,-460.0,0.00018167,2]
[367506371,1750834240234,-460.0,0.00018167,2]
[367506372,1750834240244,-762.64,0.00018167,2]
[367506373,1750834240253,-245.19,0.00018167,2]
[367506374,1750834240262,-460.0,0.00018167,2]
[367506375,1750834240271,-460.0,0.00018167,2]
[367506376,1750834240281,-460.0,0.00018167,2]
[367506377,1750834240290,-613.34,0.00018167,2]
[367506378,1750834240300,-332.95,0.00018167,2]
[367506379,1750834240310,-460.0,0.00018167,2]
[367506380,1750834240319,-978.23,0.00018167,2]
[367506381,1750834240329,-460.0,0.00018167,2]
[367506382,1750834240339,-612.85,0.00018167,2]
[367506383,1750834240349,-564.47,0.00018167,2]
[367506384,1750834240359,-460.0,0.00018167,2]
[367506385,1750834240368,-460.0,0.00018167,2]
[367506386,1750834240378,-460.0,0.00018167,2]
[367506387,1750834240387,-482.37,0.00018168,2]
[367506388,1750834240397,-460.0,0.00018168,2]
[367506389,1750834240406,-460.0,0.00018168,2]
[367506390,1750834240590,-460.0,0.00018168,2]
[367506391,1750834240600,-460.0,0.00018168,2]
[367506392,1750834240609,-586.41,0.00018169,2]
[367506393,1750834240618,-460.0,0.00018169,2]
[367506394,1750834240627,-460.0,0.00018169,2]
[367506395,1750834240636,-460.0,0.0001817,2]
[367506396,1750834240646,-500.0,0.00018194,2]
[367506397,1750834240655,-848.55,0.00018263,2]
[367506398,1750834240666,-1115.39,0.00018263,2]
[367506399,1750834240675,-1053.33,0.00018263,2]
[367506400,1750834240684,-1132.88,0.00018263,2]
[367506401,1750834240693,-460.0,0.00018263,2]
[367506402,1750834240702,-914.59,0.00018263,2]
[367506403,1750834240712,-813.22,0.00018263,2]
[367506404,1750834240721,-1246.56,0.00018263,2]
[367506405,1750834240730,-460.0,0.00018263,2]
[367506406,1750834240739,-700.09,0.00018263,2]
[367506407,1750834240748,-500.0,0.00018339,2]
[367506408,1750834240757,-2274.63964404,0.00018383,2]
[367506409,1750834240766,-500.0,0.00018395,2]
[367506410,1750834240775,-500.0,0.00018422,2]
[367506411,1750834240784,-460.0,0.0001844,2]
[367506412,1750834240794,-460.0,0.0001844,2]
[367506413,1750834240803,-460.0,0.0001844,2]
[367506414,1750834240811,-460.0,0.0001844,2]
[367506415,1750834240821,-311.59,0.0001844,2]
[367506416,1750834240830,-28333.04,0.0001844,2]
[367506417,1750834240839,-460.0,0.0001844,2]
[367506418,1750834240848,-1729.3,0.0001844,2]
[367506419,1750834240857,-460.0,0.0001844,2]
[367506420,1750834240866,-460.0,0.0001844,2]
[367506421,1750834240876,-752.41,0.0001844,2]
[367506422,1750834240885,-460.0,0.00018441,2]
[367506423,1750834240894,-167.35,0.00018441,2]
[367506424,1750834240903,-762.64,0.00018441,2]
[367506425,1750834240912,-460.0,0.00018441,2]
[367506426,1750834240921,-460.0,0.00018441,2]
[367506427,1750834240930,-502.94,0.00018441,2]
[367506428,1750834240940,-613.34,0.00018441,2]
[367506429,1750834240949,-460.0,0.00018441,2]
[367506430,1750834240958,-978.23,0.00018441,2]
[367506431,1750834240970,-460.0,0.00018441,2]
[367506432,1750834240980,-612.85,0.00018441,2]
[367506433,1750834240990,-564.47,0.00018441,2]
[367506434,1750834240999,-460.0,0.00018441,2]
[367506435,1750834241008,-460.0,0.00018441,2]
[367506436,1750834241017,-460.0,0.00018441,2]
[367506437,1750834241026,-250.14,0.00018442,2]
[367506438,1750834241036,-460.0,0.00018442,2]
[367506439,1750834241045,-473.84813327,0.00018443,2]
[367506440,1750834241055,-1680.0,0.00018443,2]
[367506441,1750834241064,-420.0,0.00018451,2]
[367506442,1750834241073,-12558.06783089,0.00018451,2]
[367506443,1750834241082,-230.22714675,0.00018453,2]
[367506444,1750834241091,-836.86812089,0.00018453,2]
[367506445,1750834241100,-213.69531788,0.00018453,2]
[367506446,1750834241110,-846.80634355,0.00018453,2]
[367506447,1750834241119,-160.0,0.00018453,2]
[367506448,1750834241128,-160.0,0.00018453,2]
[367506449,1750834241138,-425.18553072,0.00018453,2]
[367506450,1750834241147,-524.21181985,0.00018453,2]
[367506451,1750834241156,-500.0,0.00018509,2]
[367506452,1750834241165,-500.0,0.00018509,2]
[367506453,1750834241174,-848.55,0.00018536,2]
[367506454,1750834241183,-1115.39,0.00018536,2]
[367506455,1750834241193,-1053.33,0.00018536,2]
[367506456,1750834241203,-1132.88,0.00018536,2]
[367506457,1750834241212,-460.0,0.00018536,2]
[367506458,1750834241221,-914.59,0.00018536,2]
[367506459,1750834241230,-813.22,0.00018536,2]
[367506460,1750834241239,-1246.56,0.00018536,2]
[367506461,1750834241249,-460.0,0.00018536,2]
[367506462,1750834241258,-700.09,0.00018536,2]
[367506463,1750834241268,-179.91004498,0.0001856,2]
[367506464,1750834241277,-519.76312072,0.00018613,2]
[367506465,1750834241286,-502.42028969,0.00018613,2]
[367506466,1750834241296,-500.0,0.00018613,2]
[367506467,1750834241306,-500.0,0.00018613,2]
[367506468,1750834241316,-500.0,0.00018613,2]
[367506469,1750834241326,-207.4,0.00018617,2]
[367506470,1750834241335,-1688.0,0.00018617,2]
[367506471,1750834241344,-500.0,0.00018617,2]
[367506472,1750834241354,-500.0,0.00018617,2]
[367506473,1750834241364,-500.0,0.00018617,2]
[367506474,1750834241374,-500.0,0.00018617,2]
[367506475,1750834241383,-500.0,0.00018617,2]
[367506476,1750834241397,-500.0,0.00018617,2]
[367506477,1750834241410,-500.0,0.00018617,2]
[367506478,1750834241420,-500.0,0.00018617,2]
[367506479,1750834241430,-500.0,0.00018617,2]
[367506480,1750834241441,-500.0,0.00018617,2]
[367506481,1750834241450,-151.0,0.00018617,2]
[367506482,1750834241460,-2274.63964404,0.00018624,2]
[367506483,1750834241470,-500.0,0.00018662,2]
[367506484,1750834241479,-500.0,0.00018662,2]
[367506485,1750834241489,-194.38611826,0.00018672,2]
[367506486,1750834241499,-460.0,0.00018714,2]